Cogmind - Beta 14 @@@ ROGUE MODE // 2024.10.11 @ 01:27:12 Player: Delilah Keen Result: Destroyed by G-47 Trooper with Particle Gun Performance ------------- Evolutions (0) 0 Regions Visited (2) 400 Robots Destroyed (32) 160 Value Destroyed (831) 831 Prototype IDs (0) 0 Alien Tech Used (0) 0 Bonus (0) 0 TOTAL SCORE: 1391 Bonus ------- None Cogmind --------- Core Integrity 0/250 Matter 207/300 Energy 241/265 System Corruption 4% Temperature Cool (17) Movement Treading (160) Location -10/Mines Parts ------- > --- POWER (1) -------- Improved Ion Engine > --- PROPULSION (2) --- Light Treads Light Treads > --- UTILITY (2) ------ Small Storage Unit > --- WEAPON (2) ------- Autogun Shotgun > --- INVENTORY (8) ---- Ion Engine Light Treads Signal Interpreter Light Assault Rifle Autogun Shotgun Rocket Launcher Mining Claw Peak State ------------ > --- POWER ------------ Light Nuclear Core > --- PROPULSION ------- Aluminum Leg Aluminum Leg > --- UTILITY ---------- Small Storage Unit Sensor Array > --- WEAPON ----------- Autogun Shotgun > --- INVENTORY -------- Ion Engine Light Treads Signal Interpreter Light Assault Rifle Autogun Shotgun Rocket Launcher Mining Claw [Rating: 12] Favorites ----------- Power Light Ion Engine Engine Light Ion Engine Power Core Light Nuclear Core Propulsion Light Treads Treads Light Treads Leg Aluminum Leg Utility Small Storage Unit Device Sensor Array Storage Small Storage Unit Protection Light Armor Plating Weapon Shotgun Energy Gun EM Pulse Gun Ballistic Gun Shotgun Slashing Weapon Mining Claw Build | -11 -10 -10 ------- Run | Yrd Mat Min Slots Evolved . | . . . Power . | . . . Propulsion . | . . . Utility . | . . . Weapon . | . . . Parts Attached 28 | 6 15 7 Power 5 | 1 2 2 Engine 4 | 1 2 1 Core 1 | . . 1 Reactor . | . . . Propulsion 7 | 2 1 4 Treads 5 | 2 1 2 Leg 2 | . . 2 Wheel . | . . . Hover . | . . . Flight . | . . . Utility 7 | 1 6 . Device 3 | . 3 . Storage 1 | 1 . . Processor . | . . . Hackware . | . . . Protection 3 | . 3 . Artifact . | . . . Weapon 9 | 2 6 1 Energy Gun 1 | 1 . . Energy Cannon . | . . . Ballistic Gun 6 | 1 4 1 Ballistic Cannon . | . . . Launcher . | . . . Special Weapon . | . . . Impact Weapon . | . . . Slashing Weapon 2 | . 2 . Piercing Weapon . | . . . Special Melee Weapon . | . . . Unidentified Prototypes . | . . . Parts Lost 7 | . 5 2 Power 2 | . 1 1 Propulsion 2 | . 2 . Utility 2 | . 1 1 Weapon 1 | . 1 . Highest Loss Streak 4 | . 4 1 To Critical Strikes . | . . . Average Slot Usage (%) 93 | . 91 99 Engine 12 | . 13 9 Core 1 | . . 4 Treads 21 | . 25 10 Leg 5 | . . 17 Device 6 | . 3 13 Storage 14 | . 14 14 Protection 3 | . 5 . Energy Gun 3 | . 5 . Ballistic Gun 19 | . 16 26 Slashing Weapon 4 | . 5 1 Peak Build Rating 12 | 6 10 12 Average Rating 8 | 3 7 10 On Entrance 4 | . 6 8 Naked Turns . | . . . Heaviest Build 19 | 12 17 19 Greatest Support 40 | 40 40 40 Greatest Overweight (x) 3 | . 3 . Average Overweight (x) . | . . . Largest Inventory Capacity 8 | 8 8 8 Average Capacity 7 | 6 8 8 Most Carried 8 | 5 8 8 Average Carried 7 | 2 7 7 Final Capacity 8 | 8 8 8 Final Carried 8 | 4 7 8 Class Distribution -------------------- 90% | Mutant 9% | Scavenger-Mutant Dominant Class ---------------- Mutant | -10/Materials Mutant | -10/Mines Resources | -11 -10 -10 ----------- Run | Yrd Mat Min Matter Collected 955 | 209 509 237 Remotely 78 | . 78 . Salvage Created 1206 | . 825 381 Parts 62 | . 38 24 Haulers Intercepted . | . . . Recyclers Shooed 2 | . 1 1 Parts Field Recycled . | . . . Retrieved Matter . | . . . Parts Self-Destructed . | . . . Prevented . | . . . Kills | -11 -10 -10 ------- Run | Yrd Mat Min Combat Hostiles Destroyed 23 | . 14 9 Melee 3 | . 2 1 Guns 18 | . 10 8 AOE 2 | . 2 . Classes Destroyed 8 | 1 5 2 Worker 1 | . 1 . Tunneler 2 | 1 . 1 Recycler 4 | . 3 1 Operator 1 | . 1 . Watcher 1 | . 1 . Swarmer 4 | . . 4 Grunt 17 | . 14 3 Sentry 2 | . . 2 Best Kill Streak 4 | 1 3 4 Combat Bots Only 2 | . 2 2 Max Kills in Single Turn 1 | 1 1 1 Gunslinging . | . . . Exploded 1 | . 1 . Melee 1 | . 1 1 Uniques/NPCs Destroyed . | . . . Combat | -11 -10 -10 -------- Run | Yrd Mat Min Hostile Shots Fired 183 | . 105 78 Missed 52 | . 25 27 Damage Taken 1615 | . 989 626 Core 264 | . 158 106 Absorbed by Shields . | . . . Core Remaining (%) 100 | 100 . . Volleys Fired 101 | . 69 32 Largest 2 | . 2 2 Hottest 60 | . 60 46 Shots Fired 180 | . 117 63 Gun 180 | . 117 63 Cannon . | . . . Launcher . | . . . Special . | . . . Kinetic 149 | . 86 63 Thermal . | . . . Explosive . | . . . Electromagnetic 31 | . 31 . Robot Hit Streak 25 | . 25 11 Robot Miss Streak 6 | . 6 4 Penetration Max . | . . . Secondary Targets 1 | . . 1 Max Gunslinging Chain 1 | . . 1 Shots Hit Robots 145 | . 97 48 Core Hits 56 | 1 34 21 Critical Kills 1 | . 1 . Critical Parts Destroyed . | . . . Critical Strikes 2 | . 2 . Destroy 1 | . 1 . Corrupt 1 | . 1 . Melee Attacks 36 | . 24 12 Impact . | . . . Slashing 36 | . 24 12 Piercing . | . . . Sneak Attacks 3 | . 2 1 Combat Hostiles . | . . . Follow-up Attacks . | . . . Damage Inflicted 2507 | 9 1632 866 Guns 1779 | . 1096 683 Cannons . | . . . Explosions 109 | . 109 . Melee 576 | . 410 166 Ramming 43 | 9 17 17 Kinetic 1443 | . 760 683 Thermal 109 | . 109 . Explosive . | . . . Electromagnetic 336 | . 336 . Impact . | . . . Slashing 576 | . 410 166 Piercing . | . . . Highest Corruption 4 | . 4 4 Average Corruption 3 | . 3 4 Corruption Purged . | . . . Corruption Blocked . | . . . Effects 48 | . 31 17 Message Errors 16 | . 14 2 Matter Fused 8 | . 5 3 Heat Flow Errors 8 | . 4 4 Energy Discharges 9 | . 5 4 Data Loss (minor) 3 | . 2 1 Misfires 3 | . 1 2 Weapon Failures 1 | . . 1 Overload Shots . | . . . Overflow Damage 96 | . 70 26 Projectiles . | . . . Explosions . | . . . Melee 96 | . 70 26 Knockbacks . | . . . Impact . | . . . Kinetic . | . . . Secondary . | . . . Self-Inflicted Damage 46 | . 46 . Shots 1 | . 1 . Rammed 8 | 1 6 1 Targets Rammed 11 | 2 6 3 Kicked 2 | . . 2 Crushed 1 | 1 . . Highest Temperature 250 | . 243 250 Average Temperature 54 | . 62 38 Received Heat Transfer 714 | . 516 198 Siege Activations . | . . . Robots Corrupted . | . . . Combat Hostiles . | . . . Parts Fried 2 | . 2 . Impact Corruptions . | . . . Robots Melted . | . . . Combat Hostiles . | . . . Parts Melted . | . . . Heat Transferred . | . . . Parts Sabotaged . | . . . Parts Stolen . | . . . Parts Stripped . | . . . Power Chain Reactions 2 | . 2 . Alert | -11 -10 -10 ------- Run | Yrd Mat Min Peak Influence 192 | 5 192 143 Initial 18 | . 3 18 Average 54 | 1 54 63 Maximum Alert Level . | . . . Low Security (%) 100 | 100 100 100 Level 1 . | . . . Level 2 . | . . . Level 3 . | . . . Level 4 . | . . . Level 5 . | . . . High Security . | . . . Max Security . | . . . Squads Dispatched 5 | . 5 . Investigation 2 | . 2 . Extermination . | . . . Reinforcement 3 | . 3 . Assault . | . . . Garrison . | . . . Intercept . | . . . Searches Triggered . | . . . Construction Impeded . | . . . Haulers Reinforced . | . . . Active Scanning Responses . | . . . Cargo Convoy Interrupts . | . . . Stealth | -11 -10 -10 --------- Run | Yrd Mat Min Distress Signals 3 | . 2 1 Communications Jammed . | . . . Distress Signals . | . . . Times Spotted 51 | . 39 12 Peak Tracking Total 4 | . 4 3 Tactical Retreats 5 | . 3 2 Traps | -11 -10 -10 ------- Run | Yrd Mat Min Traps Triggered 4 | . 4 . Indirectly . | . . . Trap Hack Attempts . | . . . Triggered . | . . . Disarmed . | . . . Reprogrammed . | . . . Reused . | . . . Traps Extracted . | . . . Installed . | . . . Triggered . | . . . Machines | -11 -10 -10 ---------- Run | Yrd Mat Min Machines Disabled . | . . . Max in Single Turn . | . . . Machines Repaired . | . . . Machines Dismantled . | . . . Machines Sabotaged . | . . . Overloaded Fab Kills . | . . . Hacking | -11 -10 -10 --------- Run | Yrd Mat Min Machines Accessed 6 | . 6 . Terminals 4 | . 4 . Fabricators . | . . . Repair Stations . | . . . Recycling Units 2 | . 2 . Scanalyzers . | . . . Garrison Access . | . . . Total Hacks 21 | . 21 . Successful 6 | . 6 . Failed 15 | . 15 . Catastrophic 4 | . 4 . Database Lockouts . | . . . Manual 5 | . 5 . Terminals 13 | . 13 . Fabricators . | . . . Repair Stations . | . . . Recycling Units 8 | . 8 . Scanalyzers . | . . . Garrison Access . | . . . Terminal Hacks 4 | . 4 . Robot Analysis 1 | . 1 . Branch Access Points 1 | . 1 . Emergency Access Points 1 | . 1 . Registered Components 1 | . 1 . Fabricator Hacks . | . . . Repair Station Hacks . | . . . Recycling Unit Hacks 2 | . 2 . Report Inventory 2 | . 2 . Scanalyzer . | . . . Garrison Access Hacks . | . . . Unauthorized Hacks . | . . . Terminals . | . . . Fabricators . | . . . Repair Stations . | . . . Recycling Units . | . . . Scanalyzers . | . . . Garrison Access . | . . . Data Cores Recovered . | . . . Used . | . . . Hacking Detections 6 | . 6 . Full Trace Events . | . . . Feedback Events . | . . . Feedback Blocked . | . . . Robot Schematics Acquired . | . . . Robots Built . | . . . Authchips . | . . . Time . | . . . Total Robot Build Rating . | . . . Part Schematics Acquired . | . . . Parts Built . | . . . Authchips . | . . . Time . | . . . Total Part Build Rating . | . . . Parts Repaired . | . . . Time . | . . . Parts Recycled . | . . . Recycled Matter . | . . . Retrieved Matter . | . . . Retrieved Components . | . . . Parts Scanalyzed . | . . . Part Schematics Acquired . | . . . Parts Damaged . | . . . Bothacking | -11 -10 -10 ------------ Run | Yrd Mat Min Used RIF Installer . | . . . Robots Hacked . | . . . Non-combat . | . . . Combat . | . . . Robot Hacks Applied . | . . . Relay Couplers Released . | . . . Fabnet Peak Effective % . | . . . Robots Rewired . | . . . Allies Hacked . | . . . Hacks Repelled . | . . . Allies | -11 -10 -10 -------- Run | Yrd Mat Min Total Allies . | . . . Largest Group . | . . . Highest-Rated Group . | . . . Highest-Rated Ally . | . . . Total Orders . | . . . Ally Attacks . | . . . Total Damage . | . . . Kills . | . . . Allies Corrupted . | . . . Allies Melted . | . . . Intel | -11 -10 -10 ------- Run | Yrd Mat Min Robot Analysis Total 1 | . 1 . Derelict Logs Recovered 2 | . . 2 Drone Launches . | . . . Drone Recoveries . | . . . Exploration | -11 -10 -10 ------------- Run | Yrd Mat Min Turns Passed 3367 | 146 2258 963 Spaces Moved 1871 | 93 1186 592 Core 32 | 18 14 . Treads 1443 | 75 1172 196 Legs 396 | . . 396 Wheels . | . . . Hover . | . . . Flight . | . . . Fastest Speed 50 | 50 150 120 Average Speed 150 | 138 160 133 Slowest Speed 200 | 160 200 160 Overloaded Moves . | . . . Propulsion Burnouts . | . . . Robots Hopped . | . . . Cave-ins Triggered . | . . . Exploration Rate (%) 64 | 4 92 96 Regions Visited 2 Branch Regions 1 Pre-discovered Areas 1 | . . 1 Known Exits Taken 1 | . 1 . Unknown Exits Taken 1 | 1 . . Scrap Searched 1 | . . 1 Spaces Dug . | . . . Terrain Destroyed 6 | . 6 . Melee . | . . . Projectile . | . . . AOE 6 | . 6 . Terrain Rammed . | . . . Walls Destroyed . | . . . Machines Disabled . | . . . Actions | -11 -10 -10 --------- Run | Yrd Mat Min Total 2179 | 107 1384 688 Wait 93 | . 60 33 Move 1869 | 92 1185 592 Hop . | . . . Pick Up 18 | 6 10 2 Fast Attach 17 | 5 8 4 Attach 9 | 1 5 3 Detach 6 | . 3 3 Swap 2 | . 2 . Drop 17 | 1 12 4 Fire 101 | . 69 32 Melee 36 | . 24 12 Ram . | . . . Kick 2 | . . 2 Crush 9 | 2 6 1 Escape Stasis . | . . . Rewire . | . . . Trap . | . . . Miscellaneous . | . . . Route ------- -11/Scrapyard -10/Materials (discovered 3 exits: [*Mat x2] / *Min) -10/Mines (discovered 2 exits: [*Mat x2]) History --------- Turn | Location | Event 8 | -11/Scrapyard | Discovered new exit (range 15) 147 | -11/Scrapyard | Entered Materials 308 | -10/Materials | Build established: Mutant 992 | -10/Materials | Identified exit to Mines 1169 | -10/Materials | Discovered new exit (range 15) 1521 | -10/Materials | Discovered new exit (range 16) 2109 | -10/Materials | Core integrity fell below 50% 2168 | -10/Materials | Lost 4 parts (1p2n1w) 2405 | -10/Materials | Entered Mines 2498 | -10/Mines | Discovered new exit (range 6) 2546 | -10/Mines | Received a Rocket Launcher from a helpful Derelict 2662 | -10/Mines | Learned Materials stockpile data 2821 | -10/Mines | Discovered new exit (range 13) 2989 | -10/Mines | Core integrity fell below 20% 3285 | -10/Mines | Build established: Scavenger-Mutant 3368 | -10/Mines | Destroyed by G-47 Trooper with Particle Gun Last Messages --------------- 02997_ Lgt. Nuclear Core destroyed. 02998_ Y-45 Defender destroyed. 02999_ Acquired 2 matter. 03002_ Dropped Shotgun. 03003_ Acquired Shotgun. 03005_ System corrupted: Component data lost. 03005_ Acquired 6 matter. 03008_ Acquired Imp. Ion Engine. 03009_ Acquired 10 matter. 03012_ Dropped Aluminum Leg. 03013_ Acquired Lgt. Treads. 03022_ Acquired 20 matter. 03032_ System corrupted: Heat flow error (+129). 03149_ Slammed into T-07 Excavator. 03186_ JUA065#Q0B,UK7/M2DIR 03211_ System corrupted: Heat flow error (+138). 03267_ System corrupted: Matter fused (-10). 03320_ G-34 Mercenary destroyed. 03322_ Sensor Array destroyed. 03365_ System corrupted: Energy discharge (-58). Map ----- +----------------------------------------------------+ | | | | | | | ??????????????????????????????????????? | | ??????????????????????????????????????? | | ??????????????????????????????????????? | | ??????????????????????????????????????? | | ??????????????????????????????????????? | | ??????????????????#####?########??????? | | ????????????????? ### ##?????? | | ????????????????? ## ##????? | | ?????####??????? """ ## ##???# | | ????## ########!""" ## ##### | | ???## =%=""" ## | | ??## #### ##[ ## | | ??# #??# #?####### ######### | | ??# #??# #?????## ##???????? | | ??## ##?# #????## """ ##???????? | | ???## #?# #????# """ #???????? | | ????## #?# #????# """ #???????? | | ????## ##?# #????# ##???????? | | ????# #??# #????## ##????????? | | ???## #??# #?????## ##?????????? | | ??## #??# #?????## ##?????????? | | ??# ####g####### ##??????### | | ??# @ #?????## | | ?# t ##???## | | ?# ########### ##?## | | ?# #????????# ###= =% | | ?# #????????# !%[! | | ?# ##????????# %%!! | | ?## ###????????## ###### | # | | ??####???????????# ##????#### ### | | ?????????????????# #????????# ### | | ?????????????????## #????????# | | ??????????????????##### #????????#### | | ??????????????????????# #???????????# | | ??????????????????????# ####????????## | | ?????????????????????## ########### | | ?????????????????????# | | ?????????????????????# ############ | | ?????????????????????## ##????????### | | ??????????????????????## ##????????# | | ???????????????????????## ##???????# | | ????????????????????????# ###?????# | | ???????????????????????## ###???# | | ?????????????????????### """ ##??### | | ????????????????????## """ #????# | | ????????????????????# """ #????? | | ????????????????????# """ ##????? | +----------------------------------------------------+ Best States ------------- Heat Dissipation 25 Energy Generation 14 Energy Capacity 265 Matter Stores 300 Matter Capacity 300 Sight Range 16 Robot Scan Range 14 Terrain Scan Range 14 Terrain Scan Density 10 Armor Coverage 150 Evasion (%) 55 Recoil Reduction 2 Item Schematics ----------------- None Robot Schematics ------------------ None Fabricated ------------ Nothing Alien Tech Used ----------------- None Achievements -------------- None Challenges ------------ None Game ------ Seed TeleporterScanArmor Manual? 0 Play Time 00:33:07 Cumulative 10.3 hours Start 2024.10.11 @ 00:37:52 End 2024.10.11 @ 01:27:12 Sessions 1 Manual Loads 0 Difficulty Rogue Special Mode None Game No. 10 Rogue 10 Adventurer 0 Explorer 0 Win Type - Total 0 Types 0/0/0/0/0/0/0/0/0 Lore% 5 Gallery% 9 Achievement% 10 Wizard Run 0 Options --------- Layout 0 ASCII 0 Keyboard 1 Movement Arrows Keybinds 0 Fullscreen 1 Font 24/Smallcaps Map View 76x50 Zoom Use 5% Tactical HUD 1 Map Filters NONE Filters NONE Steam 1 RUN: 985f0e59-a202-4ba2-87d5-ebe42f98db94